fUSD/lending_fUSD_20250609
["ID","MTS","AMOUNT","RATE_DAILY","PERIOD"]
[365052702,1749427864295,-480.0,0.00019352,2]
[365052703,1749427864304,-480.0,0.00019352,2]
[365052704,1749427864315,-480.0,0.00019352,2]
[365052705,1749427864324,-648.05,0.00019352,2]
[365052706,1749427864334,-480.0,0.00019352,2]
[365052707,1749427864344,-672.63,0.00019352,2]
[365052708,1749427864355,-480.0,0.00019352,2]
[365052709,1749427864364,-480.0,0.00019352,2]
[365052710,1749427864374,-480.0,0.00019352,2]
[365052711,1749427864385,-666.1,0.00019352,2]
[365052712,1749427864395,-480.0,0.00019352,2]
[365052713,1749427864405,-480.0,0.00019352,2]
[365052714,1749427864415,-480.0,0.00019352,2]
[365052715,1749427864425,-480.0,0.00019352,2]
[365052716,1749427864435,-809.76,0.00019352,2]
[365052717,1749427864445,-520.0,0.00019352,2]
[365052718,1749427864455,-480.0,0.00019352,2]
[365052719,1749427864465,-480.0,0.00019352,2]
[365052720,1749427864475,-480.0,0.00019352,2]
[365052721,1749427864485,-480.0,0.00019352,2]
[365052722,1749427864495,-480.0,0.00019352,2]
[365052723,1749427864505,-480.0,0.00019352,2]
[365052724,1749427864514,-480.0,0.00019352,2]
[365052725,1749427864523,-480.0,0.00019352,2]
[365052726,1749427864533,-480.0,0.00019352,2]
[365052727,1749427864547,-480.0,0.00019352,2]
[365052728,1749427864565,-480.0,0.00019352,2]
[365052729,1749427864583,-480.0,0.00019352,2]
[365052730,1749427864601,-480.0,0.00019352,2]
[365052731,1749427864617,-480.0,0.00019352,2]
[365052732,1749427864637,-585.97,0.00019352,2]
[365052733,1749427864655,-480.0,0.00019352,2]
[365052734,1749427864675,-866.26,0.00019352,2]
[365052735,1749427864692,-204.73297156,0.00019352,2]
[365052736,1749427864712,-480.0,0.00019352,2]
[365052737,1749427864730,-559.86,0.00019352,2]
[365052738,1749427864746,-480.0,0.00019352,2]
[365052739,1749427864767,-480.0,0.00019352,2]
[365052740,1749427864783,-480.0,0.00019352,2]
[365052741,1749427864798,-480.0,0.00019352,2]
[365052742,1749427864815,-530.61704494,0.00019352,2]
[365052743,1749427864830,-480.0,0.00019352,2]
[365052744,1749427864844,-505.14,0.00019352,2]
[365052745,1749427864861,-480.0,0.00019352,2]
[365052746,1749427864875,-480.0,0.00019352,2]
[365052747,1749427864891,-480.0,0.00019352,2]
[365052748,1749427864907,-480.0,0.00019352,2]
[365052749,1749427864924,-480.0,0.00019352,2]
[365052750,1749427864939,-480.0,0.00019352,2]
[365052751,1749427864954,-519.01,0.00019352,2]
[365052752,1749427864969,-1258.9,0.00019352,2]
[365052753,1749427864984,-480.0,0.00019352,2]
[365052754,1749427864997,-563.07,0.00019352,2]
[365052755,1749427865012,-631.72,0.00019352,2]
[365052756,1749427865029,-480.0,0.00019352,2]
[365052757,1749427865044,-487.95,0.00019352,2]
[365052758,1749427865058,-526.48,0.00019352,2]
[365052759,1749427865073,-895.53,0.00019352,2]
[365052760,1749427865087,-691.91,0.00019352,2]
[365052761,1749427865101,-1013.38,0.00019352,2]
[365052762,1749427865116,-480.0,0.00019352,2]
[365052763,1749427865131,-522.65,0.00019352,2]
[365052764,1749427865145,-480.0,0.00019352,2]
[365052765,1749427865159,-480.0,0.00019352,2]
[365052766,1749427865173,-644.32,0.00019352,2]
[365052767,1749427865186,-480.0,0.00019352,2]
[365052768,1749427865202,-551.92,0.00019352,2]
[365052769,1749427865218,-582.88,0.00019352,2]
[365052770,1749427865233,-480.0,0.00019352,2]
[365052771,1749427865249,-480.0,0.00019352,2]
[365052772,1749427865263,-520.0,0.00019353,2]
[365052773,1749427865278,-480.0,0.00019353,2]
[365052774,1749427865292,-2322.43425576,0.00019452,2]
[365052775,1749427865308,-540.0,0.00019515,2]
[365052776,1749427865324,-480.0,0.00019515,2]
[365052777,1749427865340,-480.0,0.00019515,2]
[365052778,1749427865356,-480.0,0.00019515,2]
[365052779,1749427865371,-480.0,0.00019515,2]
[365052780,1749427865387,-480.0,0.00019515,2]
[365052781,1749427865403,-480.0,0.00019515,2]
[365052782,1749427865418,-480.0,0.00019515,2]
[365052783,1749427865434,-480.0,0.00019515,2]
[365052784,1749427865450,-480.0,0.00019515,2]
[365052785,1749427865464,-480.0,0.00019515,2]
[365052786,1749427865479,-859.25,0.00019515,2]
[365052787,1749427865494,-480.0,0.00019515,2]
[365052788,1749427865508,-480.0,0.00019515,2]
[365052789,1749427865522,-480.0,0.00019515,2]
[365052790,1749427865536,-480.0,0.00019515,2]
[365052791,1749427865551,-480.0,0.00019515,2]
[365052792,1749427865566,-480.0,0.00019515,2]
[365052793,1749427865580,-480.0,0.00019515,2]
[365052794,1749427865595,-691.74,0.00019515,2]
[365052795,1749427865610,-256.34,0.00019515,2]
[365052796,1749427865625,-480.0,0.00019515,2]
[365052797,1749427865639,-1304.9,0.00019515,2]
[365052798,1749427865654,-480.0,0.00019515,2]
[365052799,1749427865669,-480.0,0.00019515,2]
[365052800,1749427865685,-480.0,0.00019515,2]
[365052801,1749427865696,-550.46,0.00019515,2]
[365052802,1749427865706,-480.0,0.00019515,2]
[365052803,1749427865716,-480.0,0.00019515,2]
[365052804,1749427865726,-480.0,0.00019515,2]
[365052805,1749427865736,-573.28,0.00019515,2]
[365052806,1749427865942,-846.62,0.00019515,2]
[365052807,1749427865961,-480.0,0.00019515,2]
[365052808,1749427865975,-480.0,0.00019515,2]
[365052809,1749427865985,-480.0,0.00019515,2]
[365052810,1749427865995,-1165.27,0.00019515,2]
[365052811,1749427866005,-480.0,0.00019515,2]
[365052812,1749427866015,-480.0,0.00019515,2]
[365052813,1749427866025,-480.0,0.00019515,2]
[365052814,1749427866035,-575.23,0.00019515,2]
[365052815,1749427866044,-599.95,0.00019515,2]
[365052816,1749427866054,-152.04569014,0.00019515,2]
[365052817,1749427866063,-480.0,0.00019515,2]
[365052818,1749427866072,-970.64,0.00019515,2]
[365052819,1749427866081,-587.24,0.00019515,2]
[365052820,1749427866090,-480.0,0.00019515,2]
[365052821,1749427866100,-480.0,0.00019515,2]
[365052822,1749427866109,-746.73,0.00019515,2]
[365052823,1749427866119,-579.13305946,0.00019515,2]
[365052824,1749427866128,-480.0,0.00019515,2]
[365052825,1749427866138,-499.38,0.00019515,2]
[365052826,1749427866147,-480.0,0.00019515,2]
[365052827,1749427866156,-480.0,0.00019515,2]
[365052828,1749427866165,-480.0,0.00019515,2]
[365052829,1749427866174,-480.0,0.00019515,2]
[365052830,1749427866184,-608.12,0.00019515,2]
[365052831,1749427866193,-480.0,0.00019515,2]
[365052832,1749427866203,-480.0,0.00019515,2]
[365052833,1749427866212,-480.0,0.00019515,2]
[365052834,1749427866222,-480.0,0.00019515,2]
[365052835,1749427866231,-569.32262838,0.00019515,2]
[365052836,1749427866240,-480.0,0.00019515,2]
[365052837,1749427866250,-480.0,0.00019515,2]
[365052838,1749427866259,-480.0,0.00019515,2]
[365052839,1749427866269,-582.77052987,0.00019515,2]
[365052840,1749427866279,-564.80847967,0.00019515,2]
[365052841,1749427866289,-540.0,0.00019515,2]
[365052842,1749427866299,-480.0,0.00019515,2]
[365052843,1749427866308,-541.18,0.00019515,2]
[365052844,1749427866318,-480.0,0.00019515,2]
[365052845,1749427866328,-480.0,0.00019515,2]
[365052846,1749427866337,-480.0,0.00019515,2]
[365052847,1749427866347,-540.0,0.00019515,2]
[365052848,1749427866357,-480.0,0.00019515,2]
[365052849,1749427866367,-480.0,0.00019515,2]
[365052850,1749427866376,-656.77,0.00019515,2]
[365052851,1749427866385,-480.0,0.00019515,2]
[365052852,1749427866394,-514.83,0.00019515,2]
[365052853,1749427866403,-480.0,0.00019515,2]
[365052854,1749427866413,-480.0,0.00019515,2]
[365052855,1749427866422,-480.0,0.00019515,2]
[365052856,1749427866432,-480.0,0.00019515,2]
[365052857,1749427866448,-480.0,0.00019515,2]
[365052858,1749427866457,-480.0,0.00019515,2]
[365052859,1749427866466,-480.0,0.00019515,2]
[365052860,1749427866476,-480.0,0.00019515,2]
[365052861,1749427866486,-480.0,0.00019515,2]
[365052862,1749427866495,-552.78414333,0.00019515,2]
[365052863,1749427866506,-480.0,0.00019515,2]
[365052864,1749427866515,-480.0,0.00019515,2]
[365052865,1749427866524,-480.0,0.00019515,2]
[365052866,1749427866533,-480.0,0.00019515,2]
[365052867,1749427866543,-166.080733,0.00019515,2]
[365052868,1749427866552,-1015.18,0.00019515,2]
[365052869,1749427866562,-480.0,0.00019515,2]
[365052870,1749427866572,-480.0,0.00019515,2]
[365052871,1749427866581,-480.0,0.00019515,2]
[365052872,1749427866591,-510.48,0.00019515,2]
[365052873,1749427866600,-480.0,0.00019515,2]
[365052874,1749427866609,-480.0,0.00019515,2]
[365052875,1749427866620,-549.87,0.00019515,2]
[365052876,1749427866630,-480.0,0.00019515,2]
[365052877,1749427866639,-480.0,0.00019515,2]
[365052878,1749427866648,-524.49,0.00019515,2]
[365052879,1749427866658,-480.0,0.00019515,2]
[365052880,1749427866667,-480.0,0.00019515,2]
[365052881,1749427866677,-480.0,0.00019515,2]
[365052882,1749427866686,-480.0,0.00019515,2]
[365052883,1749427866696,-540.0,0.00019515,2]
[365052884,1749427866706,-522.38,0.00019515,2]
[365052885,1749427866716,-480.0,0.00019515,2]
[365052886,1749427866726,-184.99927343,0.00019515,2]
[365052887,1749427866735,-480.0,0.00019515,2]
[365052888,1749427866744,-480.0,0.00019515,2]
[365052889,1749427866758,-480.0,0.00019515,2]
[365052890,1749427866767,-480.0,0.00019515,2]
[365052891,1749427866776,-1024.3,0.00019515,2]
[365052892,1749427866785,-480.0,0.00019515,2]
[365052893,1749427866796,-480.0,0.00019515,2]
[365052894,1749427866805,-530.22,0.00019515,2]
[365052895,1749427866814,-359.00652431,0.00019515,2]
[365052896,1749427866823,-480.0,0.00019515,2]
[365052897,1749427866835,-480.0,0.00019515,2]
[365052898,1749427866845,-480.0,0.00019515,2]
[365052899,1749427866856,-507.75,0.00019515,2]
[365052900,1749427866865,-480.0,0.00019515,2]
[365052901,1749427866875,-480.0,0.00019515,2]
[365052902,1749427866884,-620.47,0.00019515,2]
[365052903,1749427866894,-694.69,0.00019515,2]
[365052904,1749427866904,-757.81,0.00019515,2]
[365052905,1749427866913,-480.0,0.00019515,2]
[365052906,1749427866926,-480.0,0.00019515,2]
[365052907,1749427866936,-1907.22,0.00019515,2]
[365052908,1749427866944,-480.0,0.00019515,2]
[365052909,1749427866954,-731.25,0.00019515,2]
[365052910,1749427866964,-480.0,0.00019515,2]
[365052911,1749427866974,-1257.91,0.00019515,2]
[365052912,1749427866983,-667.25,0.00019515,2]
[365052913,1749427866994,-468.02324301,0.00019515,2]
[365052914,1749427867004,-480.0,0.00019515,2]
[365052915,1749427867013,-625.23,0.00019515,2]
[365052916,1749427867023,-480.0,0.00019515,2]
[365052917,1749427867033,-480.0,0.00019515,2]
[365052918,1749427867042,-584.97,0.00019515,2]
[365052919,1749427867052,-665.04,0.00019515,2]
[365052920,1749427867061,-480.0,0.00019515,2]
[365052921,1749427867070,-922.23,0.00019515,2]
[365052922,1749427867079,-480.0,0.00019515,2]
[365052923,1749427867089,-4762.67,0.00019515,2]
[365052924,1749427867098,-626.04,0.00019515,2]
[365052925,1749427867108,-480.0,0.00019515,2]
[365052926,1749427867119,-918.36,0.00019515,2]
[365052927,1749427867128,-556.85,0.00019515,2]
[365052928,1749427867139,-480.0,0.00019515,2]
[365052929,1749427867149,-516.91,0.00019515,2]
[365052930,1749427867158,-480.0,0.00019515,2]
[365052931,1749427867168,-480.0,0.00019515,2]
[365052932,1749427867178,-634.6,0.00019515,2]
[365052933,1749427867189,-480.0,0.00019515,2]
[365052934,1749427867199,-743.22,0.00019515,2]
[365052935,1749427867208,-480.0,0.00019515,2]
[365052936,1749427867218,-875.91,0.00019515,2]
[365052937,1749427867228,-480.0,0.00019515,2]
[365052938,1749427867238,-589.96,0.00019515,2]
[365052939,1749427867248,-480.0,0.00019515,2]
[365052940,1749427867257,-480.0,0.00019515,2]
[365052941,1749427867267,-480.0,0.00019515,2]
[365052942,1749427867277,-480.0,0.00019515,2]
[365052943,1749427867287,-480.0,0.00019515,2]
[365052944,1749427867296,-1146.57,0.00019515,2]
[365052945,1749427867305,-480.0,0.00019515,2]
[365052946,1749427867316,-986.46,0.00019515,2]
[365052947,1749427867327,-582.68,0.00019515,2]
[365052948,1749427867336,-224.17182038,0.00019515,2]
[365052949,1749427867346,-954.83,0.00019515,2]
[365052950,1749427867357,-480.0,0.00019515,2]
[365052951,1749427867367,-480.0,0.00019515,2]
[365052952,1749427867376,-1075.19,0.00019515,2]
[365052953,1749427867388,-480.0,0.00019515,2]
[365052954,1749427867398,-480.0,0.00019515,2]
[365052955,1749427867408,-663.56,0.00019515,2]
[365052956,1749427867418,-577.91,0.00019515,2]
[365052957,1749427867428,-984.98,0.00019515,2]
[365052958,1749427867438,-686.31,0.00019515,2]
[365052959,1749427867448,-546.72285958,0.00019515,2]
[365052960,1749427867458,-1104.14,0.00019515,2]
[365052961,1749427867467,-480.0,0.00019515,2]
[365052962,1749427867476,-480.0,0.00019515,2]
[365052963,1749427867486,-919.63,0.00019515,2]
[365052964,1749427867495,-480.0,0.00019515,2]
[365052965,1749427867504,-575.12,0.00019515,2]
[365052966,1749427867513,-1497.65,0.00019515,2]
[365052967,1749427867522,-480.0,0.00019515,2]
[365052968,1749427867532,-480.0,0.00019515,2]
[365052969,1749427867541,-539.01,0.00019515,2]
[365052970,1749427867550,-480.0,0.00019515,2]
[365052971,1749427867560,-814.01,0.00019515,2]
[365052972,1749427867569,-933.84,0.00019515,2]
[365052973,1749427867578,-618.59,0.00019515,2]
[365052974,1749427867587,-1727.89,0.00019515,2]
[365052975,1749427867596,-480.0,0.00019515,2]
[365052976,1749427867606,-480.0,0.00019515,2]
[365052977,1749427867616,-481.04,0.00019515,2]
[365052978,1749427867625,-2360.84,0.00019515,2]
[365052979,1749427867635,-480.0,0.00019515,2]
[365052980,1749427867645,-480.0,0.00019515,2]
[365052981,1749427867654,-282.86731395,0.00019515,2]
[365052982,1749427867664,-480.0,0.00019515,2]
[365052983,1749427867673,-480.0,0.00019516,2]
[365052984,1749427867683,-483.56,0.00019516,2]
[365052985,1749427867692,-480.0,0.00019516,2]
[365052986,1749427867701,-480.0,0.00019516,2]
[365052987,1749427867710,-480.0,0.00019516,2]
[365052988,1749427867719,-480.0,0.00019516,2]
[365052989,1749427867729,-480.0,0.00019516,2]
[365052990,1749427867738,-480.0,0.00019516,2]
[365052991,1749427867748,-480.0,0.00019516,2]
[365052992,1749427867761,-480.0,0.00019516,2]
[365052993,1749427867771,-366.16488716,0.00019516,2]
[365052994,1749427867780,-480.0,0.00019516,2]
[365052995,1749427867790,-543.86963524,0.00019516,2]
[365052996,1749427867799,-480.0,0.00019516,2]
[365052997,1749427867808,-480.0,0.00019516,2]
[365052998,1749427867818,-480.0,0.00019516,2]
[365052999,1749427867827,-480.0,0.00019516,2]
[365053000,1749427867837,-508.20740908,0.00019516,2]
[365053001,1749427867847,-480.0,0.00019516,2]
[365053002,1749427867857,-169.24865524,0.00019516,2]
[365053003,1749427867867,-480.0,0.00019516,2]
[365053004,1749427867877,-531.54,0.00019516,2]
[365053005,1749427867886,-480.0,0.00019516,2]
[365053006,1749427867896,-480.0,0.00019516,2]
[365053007,1749427867906,-480.0,0.00019516,2]
[365053008,1749427867915,-480.0,0.00019516,2]
[365053009,1749427867924,-480.0,0.00019516,2]
[365053010,1749427867934,-480.0,0.00019516,2]
[365053011,1749427867943,-163.5922033,0.00019516,2]
[365053012,1749427867953,-370.85551139,0.00019516,2]
[365053013,1749427867962,-480.0,0.00019516,2]
[365053014,1749427867972,-480.0,0.00019516,2]
[365053015,1749427867981,-480.0,0.00019516,2]
[365053016,1749427867991,-480.0,0.00019516,2]
[365053017,1749427868001,-480.0,0.00019516,2]
[365053018,1749427868010,-480.0,0.00019516,2]
[365053019,1749427868020,-480.0,0.00019516,2]
[365053020,1749427868029,-195.5340483,0.00019516,2]
[365053021,1749427868039,-585.67125828,0.00019516,2]
[365053022,1749427868048,-480.0,0.00019516,2]
[365053023,1749427868058,-480.0,0.00019516,2]
[365053024,1749427868068,-540.0,0.00019516,2]
[365053025,1749427868078,-480.0,0.00019516,2]
[365053026,1749427868088,-610.9,0.00019516,2]
[365053027,1749427868097,-480.0,0.00019516,2]
[365053028,1749427868107,-480.0,0.00019516,2]
[365053029,1749427868117,-480.0,0.00019516,2]
[365053030,1749427868126,-480.0,0.00019516,2]
[365053031,1749427868136,-480.0,0.00019516,2]
[365053032,1749427868146,-300.0,0.00019516,2]
[365053033,1749427868156,-480.0,0.00019516,2]
[365053034,1749427868165,-516.58,0.00019516,2]
[365053035,1749427868175,-480.0,0.00019516,2]
[365053036,1749427868184,-480.0,0.00019516,2]
[365053037,1749427868193,-480.0,0.00019516,2]
[365053038,1749427868202,-380.11203101,0.00019516,2]
[365053039,1749427868213,-538.68,0.00019516,2]
[365053040,1749427868222,-480.0,0.00019516,2]
[365053041,1749427868232,-1954.47,0.00019516,2]
[365053042,1749427868241,-480.0,0.00019516,2]
[365053043,1749427868251,-540.0,0.00019516,2]
[365053044,1749427868261,-480.0,0.00019516,2]
[365053045,1749427868271,-480.0,0.00019516,2]
[365053046,1749427868280,-480.0,0.00019516,2]
[365053047,1749427868289,-480.0,0.00019516,2]
[365053048,1749427868298,-480.0,0.00019516,2]
[365053049,1749427868307,-480.0,0.00019516,2]
[365053050,1749427868317,-480.0,0.00019516,2]
[365053051,1749427868327,-480.0,0.00019516,2]
[365053052,1749427868336,-480.0,0.00019516,2]
[365053053,1749427868346,-480.0,0.00019516,2]
[365053054,1749427868356,-480.0,0.00019516,2]
[365053055,1749427868365,-480.0,0.00019516,2]
[365053056,1749427868375,-480.0,0.00019516,2]
[365053057,1749427868384,-648.05,0.00019516,2]
[365053058,1749427868394,-480.0,0.00019516,2]
[365053059,1749427868404,-672.63,0.00019516,2]
[365053060,1749427868413,-480.0,0.00019516,2]
[365053061,1749427868423,-480.0,0.00019516,2]
[365053062,1749427868432,-480.0,0.00019516,2]
[365053063,1749427868443,-666.1,0.00019516,2]
[365053064,1749427868452,-480.0,0.00019516,2]
[365053065,1749427868461,-624.44728964,0.00019516,2]
[365053066,1749427868471,-480.0,0.00019516,2]
[365053067,1749427868480,-480.0,0.00019516,2]
[365053068,1749427868490,-809.76,0.00019516,2]
[365053069,1749427868499,-480.0,0.00019516,2]
[365053070,1749427868638,-480.0,0.00019516,2]
[365053071,1749427868653,-446.85,0.00019516,2]
[365053072,1749427868663,-480.0,0.00019516,2]
[365053073,1749427868673,-472.15887555,0.00019516,2]
[365053074,1749427868682,-480.0,0.00019516,2]
[365053075,1749427868692,-480.0,0.00019516,2]
[365053076,1749427868702,-203.61043173,0.00019516,2]
[365053077,1749427868712,-480.0,0.00019516,2]
[365053078,1749427868723,-480.0,0.00019516,2]
[365053079,1749427868733,-616.90412994,0.00019516,2]
[365053080,1749427868742,-480.0,0.00019516,2]
[365053081,1749427868752,-480.0,0.00019516,2]
[365053082,1749427868764,-389.01869533,0.00019516,2]
[365053083,1749427868774,-585.97,0.00019516,2]
[365053084,1749427868784,-480.0,0.00019516,2]
[365053085,1749427868793,-866.26,0.00019516,2]
[365053086,1749427868805,-480.0,0.00019516,2]
[365053087,1749427868815,-559.86,0.00019516,2]
[365053088,1749427868824,-480.0,0.00019516,2]
[365053089,1749427868835,-480.0,0.00019516,2]
[365053090,1749427868845,-480.0,0.00019516,2]
[365053091,1749427868858,-480.0,0.00019516,2]
[365053092,1749427868868,-480.0,0.00019516,2]
[365053093,1749427868878,-505.14,0.00019516,2]
[365053094,1749427868890,-480.0,0.00019516,2]
[365053095,1749427868899,-480.0,0.00019516,2]
[365053096,1749427868908,-480.0,0.00019516,2]
[365053097,1749427868918,-480.0,0.00019516,2]
[365053098,1749427868928,-480.0,0.00019516,2]
[365053099,1749427868937,-480.0,0.00019516,2]
[365053100,1749427868947,-519.01,0.00019516,2]
[365053101,1749427868956,-1258.9,0.00019516,2]
[365053102,1749427868966,-480.0,0.00019516,2]
[365053103,1749427868976,-563.07,0.00019516,2]
[365053104,1749427868985,-631.72,0.00019516,2]
[365053105,1749427868995,-480.0,0.00019516,2]
[365053106,1749427869004,-487.95,0.00019516,2]
[365053107,1749427869013,-526.48,0.00019516,2]
[365053108,1749427869022,-895.53,0.00019516,2]
[365053109,1749427869032,-691.91,0.00019516,2]
[365053110,1749427869042,-1013.38,0.00019516,2]
[365053111,1749427869050,-480.0,0.00019516,2]
[365053112,1749427869059,-522.65,0.00019516,2]
[365053113,1749427869069,-480.0,0.00019516,2]
[365053114,1749427869078,-480.0,0.00019516,2]
[365053115,1749427869087,-644.32,0.00019516,2]
[365053116,1749427869096,-480.0,0.00019516,2]
[365053117,1749427869108,-551.92,0.00019516,2]
[365053118,1749427869117,-582.88,0.00019516,2]
[365053119,1749427869126,-320.95,0.00019516,2]
[365053120,1749427869136,-480.0,0.00019516,2]
[365053121,1749427869145,-480.0,0.00019516,2]
[365053122,1749427869154,-465.03840965,0.00019517,2]
[365053123,1749427869164,-500.0,0.00019517,2]
[365053124,1749427869173,-205.978,0.00019528,2]
[365053125,1749427869182,-150.0,0.0001954,4]
[365053126,1749427869192,-150.0,0.00019566,120]
[365053127,1749427869201,-159.853311,0.00019599,2]
[365053128,1749427869210,-1000.0,0.00019621,2]
[365053129,1749427869220,-1000.0,0.00019621,2]
[365053130,1749427869229,-1000.0,0.00019621,2]
[365053131,1749427869238,-1003.82786266,0.00019621,2]
[365053132,1749427869247,-2322.43425576,0.00019624,2]
[365053133,1749427869256,-480.0,0.0001968,2]
[365053134,1749427869265,-480.0,0.0001968,2]
[365053135,1749427869274,-300.0,0.0001968,2]
[365053136,1749427869284,-480.0,0.0001968,2]
[365053137,1749427869293,-480.0,0.0001968,2]
[365053138,1749427869302,-480.0,0.0001968,2]
[365053139,1749427869311,-480.0,0.0001968,2]
[365053140,1749427869320,-300.0,0.0001968,2]
[365053141,1749427869330,-300.0,0.0001968,2]
[365053142,1749427869340,-300.0,0.0001968,2]
[365053143,1749427869350,-859.25,0.0001968,2]
[365053144,1749427869365,-480.0,0.0001968,2]
[365053145,1749427869375,-480.0,0.0001968,2]
[365053146,1749427869385,-480.0,0.0001968,2]
[365053147,1749427869394,-480.0,0.0001968,2]
[365053148,1749427869404,-480.0,0.0001968,2]
[365053149,1749427869413,-480.0,0.0001968,2]
[365053150,1749427869423,-480.0,0.0001968,2]
[365053151,1749427869432,-691.74,0.0001968,2]
[365053152,1749427869441,-256.34,0.0001968,2]
[365053153,1749427869450,-480.0,0.0001968,2]
[365053154,1749427869460,-1304.9,0.0001968,2]
[365053155,1749427869470,-480.0,0.0001968,2]
[365053156,1749427869480,-300.0,0.0001968,2]
[365053157,1749427869489,-480.0,0.0001968,2]
[365053158,1749427869499,-550.46,0.0001968,2]
[365053159,1749427869508,-480.0,0.0001968,2]
[365053160,1749427869518,-300.0,0.0001968,2]
[365053161,1749427869527,-480.0,0.0001968,2]
[365053162,1749427869537,-573.28,0.0001968,2]
[365053163,1749427869546,-846.62,0.0001968,2]
[365053164,1749427869557,-480.0,0.0001968,2]
[365053165,1749427869566,-480.0,0.0001968,2]
[365053166,1749427869576,-480.0,0.0001968,2]
[365053167,1749427869586,-1165.27,0.0001968,2]
[365053168,1749427869595,-480.0,0.0001968,2]
[365053169,1749427869608,-480.0,0.0001968,2]
[365053170,1749427869619,-480.0,0.0001968,2]
[365053171,1749427869629,-575.23,0.0001968,2]
[365053172,1749427869638,-599.95,0.0001968,2]
[365053173,1749427869648,-210.20077301,0.0001968,2]
[365053174,1749427869658,-970.64,0.0001968,2]
[365053175,1749427869667,-587.24,0.0001968,2]
[365053176,1749427869677,-480.0,0.0001968,2]
[365053177,1749427869687,-480.0,0.0001968,2]
[365053178,1749427869696,-746.73,0.0001968,2]
[365053179,1749427869706,-480.0,0.0001968,2]
[365053180,1749427869715,-499.38,0.0001968,2]
[365053181,1749427869724,-526.00146426,0.0001968,2]
[365053182,1749427869734,-480.0,0.0001968,2]
[365053183,1749427869743,-480.0,0.0001968,2]
[365053184,1749427869753,-480.0,0.0001968,2]
[365053185,1749427869764,-608.12,0.0001968,2]
[365053186,1749427869774,-480.0,0.0001968,2]
[365053187,1749427869783,-480.0,0.0001968,2]
[365053188,1749427869793,-480.0,0.0001968,2]
[365053189,1749427869803,-480.0,0.0001968,2]
[365053190,1749427869812,-480.0,0.0001968,2]
[365053191,1749427869822,-480.0,0.0001968,2]
[365053192,1749427869832,-480.0,0.0001968,2]
[365053193,1749427869842,-480.0,0.0001968,2]
[365053194,1749427869851,-541.18,0.0001968,2]
[365053195,1749427869862,-480.0,0.0001968,2]
[365053196,1749427869871,-480.0,0.0001968,2]
[365053197,1749427869881,-480.0,0.0001968,2]
[365053198,1749427869891,-480.0,0.0001968,2]
[365053199,1749427869900,-480.0,0.0001968,2]
[365053200,1749427869910,-656.77,0.0001968,2]
[365053201,1749427869919,-480.0,0.0001968,2]